[Event "Chinese League Div-A Rapid 2022"]
[Site "Fuling,Chongqing"]
[Date "2022.09.06"]
[Round "1.16"]
[White "Xiao, Tong"]
[Black "Li, Haoyu"]
[Result "1-0"]
[ECO "B36"]
[WhiteElo "2027"]
[BlackElo "2369"]
[Annotator "TA"]
[PlyCount "59"]
[EventDate "2022.09.07"]
[EventType "team-tourn"]
[EventCountry "CHN"]
[SourceTitle "playchess.com"]
[Source "ChessBase"]
[SourceQuality "1"]
[TimeControl "1500+10"]

{[%evp 23,59,33,39,0,0,0,0,0,0,0,0,0,0,0,0,0,0,0,0,0,0,0,11,8,29,8,13,11,38,38,35,30,164,139,29965,29961,5006,4998]} 1. e4 {[%emt 0:00:03]} c5 {[%emt 0:00:02]} 2. Nf3 {[%emt 0:00:01]} Nc6 {[%emt 0:00:04]} 3. d4 {[%emt 0:00:11]} cxd4 {[%emt 0:00:03]} 4. Nxd4 {[%emt 0:00:01]} g6 {[%emt 0:00:03]} 5. c4 {[%emt 0:00:24]} Nf6 {[%emt 0:00:17]} 6. Nc3 {[%emt 0:00:03]} Nxd4 {[%emt 0:00:04]} 7. Qxd4 {[%emt 0:00:04]} d6 {[%emt 0:00:03]} 8. Be3 {[%emt 0:00:25]} Bg7 {[%emt 0:00:05]} 9. f3 {[%emt 0:00:01]} O-O {[%emt 0:00:16]} 10. Qd2 {[%emt 0:00:03]} a5 {[%emt 0:01:38]} 11. Be2 {[%emt 0:02:30]} a4 {[%emt 0:00:20]} 12. O-O {[%emt 0:00:16]} Be6 {[%emt 0:02:21]} 13. Rfd1 {[%emt 0:01:07] B36: Sicilian: Maroczy Bind: Gurgenidze System.} Qa5 {[%emt 0:00:52]} 14. Nd5 {[%emt 0:02:23]} Nxd5 {[%emt 0:07:00]} 15. Qxa5 {[%emt 0:02:46] The position is equal.} Rxa5 {[%emt 0:00:29]} 16. cxd5 {[%emt 0:00:05]} Bd7 {[%emt 0:00:04] [#]} 17. Rac1 $146 {[%emt 0:00:56][%cal Ba1c1,Bc1c7,Bc7e7][%mdl 32]} ({Predecessor:} 17. Bb6 Raa8 18. Rac1 Rfc8 19. b3 axb3 20. axb3 Rxc1 21. Rxc1 Ra1 22. Rxa1 Bxa1 23. Kf2 {½-½ (65) Wandzik,W (2360)-Niekras,D (2097) Jastrzebia Gora 2015}) 17... Bb5 {[%emt 0:01:25]} 18. Rd2 {[%emt 0:01:07]} Bxe2 {[%emt 0:00:37]} 19. Rxe2 {[%emt 0:00:01]} Rb5 {[%emt 0:00:37]} 20. Rc7 {[%emt 0:03:10]} Bxb2 {[%emt 0:05:27]} 21. Rxe7 {[%emt 0:00:23]} f5 {[%emt 0:01:07]} 22. exf5 {[%emt 0:00:57]} Rxf5 {[%emt 0:00:55]} 23. Rc2 {[%emt 0:01:13]} Rf7 {[%emt 0:02:57]} 24. Rc8+ {[%emt 0:01:24]} (24. Re4 $5 {[%cal Re3h6]} Rf8 25. Rxa4 $14) 24... Rf8 {[%emt 0:00:06]} 25. Rcc7 {[%emt 0:00:27][%csl LRb7,LRh7]} Bf6 {[%emt 0:00:24] White must now prevent ...Rb1+.} 26. Rxb7 {[%emt 0:00:37]} Rxd5 {[%emt 0:00:05]} 27. Rxh7 {[%emt 0:00:21] Threatens to win with Rh6.} Re8 {[%emt 0:00:25] [#]} (27... Rd3 $11 {and Black stays safe.} 28. Bg5 Bd4+ 29. Kf1 Re8) 28. Rh6 $1 $18 {[%emt 0:01:00]} g5 {[%emt 0:01:49][%mdl 8192]} (28... Re7 $16 29. Rxe7 (29. Rxg6+ Kf7 $16) 29... Bxe7) 29. Rg6+ {[%emt 0:00:05]} Kh8 {[%emt 0:00:01]} 30. Rxf6 {[%emt 0:00:02] Weighted Error Value: White=0.03 (flawless) /Black=0.41} 1-0

[Event "Chinese League Div-A Rapid 2022"]
[Site "Fuling,Chongqing"]
[Date "2022.09.06"]
[Round "1.17"]
[White "Zhou, Weiqi"]
[Black "Li, Chao b"]
[Result "1/2-1/2"]
[ECO "C42"]
[WhiteElo "2597"]
[BlackElo "2679"]
[Annotator "TA"]
[PlyCount "45"]
[EventDate "2022.09.07"]
[EventType "team-tourn"]
[EventCountry "CHN"]
[SourceTitle "playchess.com"]
[Source "ChessBase"]
[SourceQuality "1"]
[TimeControl "1500+10"]

{[%evp 9,45,12,9,21,16,12,20,12,20,12,25,18,29,25,25,19,25,24,25,19,22,23,22,15,29,13,29,24,27,27,24,22,12,-15,0,0,0,-3]} 1. e4 {[%emt 0:00:03]} e5 {[%emt 0:00:08]} 2. Nf3 {[%emt 0:00:03]} Nf6 {[%emt 0:00:02]} 3. Nxe5 {[%emt 0:00:05]} d6 {[%emt 0:00:02]} 4. Nf3 {[%emt 0:00:06]} Nxe4 {[%emt 0:00:08]} 5. Bd3 {[%emt 0:00:24]} Nf6 {[%emt 0:00:07]} 6. O-O {[%emt 0:00:08] C42: Petroff Defence: 3 Nxe5 and unusual White 3rd moves.} Be7 {[%emt 0:00:03]} 7. c3 {[%emt 0:01:18] 7.Re1 is more advanced technology.} O-O {[%emt 0:01:02]} 8. Bc2 {[%emt 0:00:09]} d5 {[%emt 0:00:30]} 9. d4 {[%emt 0:00:17] [#]} h6 $146 {[%emt 0:00:03]} ({Predecessor:} 9... Bg4 10. Re1 Nbd7 11. Bg5 Re8 12. Nbd2 {½-½ (12) Sadhwani,R (2619)-Xiong,J (2688) Chess.com INT 2022}) 10. Re1 {[%emt 0:01:24]} Bd6 {[%emt 0:01:31]} 11. Nbd2 {[%emt 0:01:20]} Re8 {[%emt 0:00:12]} 12. Rxe8+ {[%emt 0:00:51]} Qxe8 {[%emt 0:00:02]} 13. Nf1 {[%emt 0:00:47]} Be6 {[%emt 0:01:24]} 14. Ng3 {[%emt 0:01:46]} Nbd7 {[%emt 0:00:13]} 15. Nf5 {[%emt 0:01:27]} Bxf5 {[%emt 0:00:11]} 16. Bxf5 {[%emt 0:00:03]} Qe7 {[%emt 0:00:02]} 17. Bd2 {[%emt 0:01:04]} Re8 {[%emt 0:01:35]} 18. Qa4 {[%emt 0:03:19]} a6 {[%emt 0:02:39]} 19. Re1 {[%emt 0:00:11]} Qd8 {[%emt 0:00:02]} 20. Rxe8+ {[%emt 0:00:27]} Qxe8 {[%emt 0:00:02] The position is equal.} 21. Bxd7 {[%emt 0:00:27]} Qxd7 {[%emt 0:00:14]} 22. Qxd7 {[%emt 0:00:04]} Nxd7 {[%emt 0:00:01]} 23. Kf1 {[%emt 0:00:04] A rather calm draw.  Weighted Error Value: White=0.03 (flawless) /Black=0.03 (flawless)} 1/2-1/2

[Event "Chinese League Div-A Rapid 2022"]
[Site "Fuling,Chongqing"]
[Date "2022.09.06"]
[Round "1.18"]
[White "Zou, Chen"]
[Black "Zhang, Di"]
[Result "0-1"]
[ECO "B04"]
[WhiteElo "2432"]
[BlackElo "2108"]
[Annotator "TA"]
[PlyCount "124"]
[EventDate "2022.09.07"]
[EventType "team-tourn"]
[EventCountry "CHN"]
[SourceTitle "playchess.com"]
[Source "ChessBase"]
[SourceQuality "1"]
[TimeControl "1500+10"]

{[%evp 9,124,15,24,26,59,27,60,60,58,0,0,-16,-16,-16,-14,-21,-15,-11,-6,-10,-12,-55,-47,-47,-40,-69,-51,-42,-25,-31,-29,-29,-29,-27,-25,-29,-24,-31,-7,-41,-26,-39,-13,-25,0,-14,-14,-65,-44,-35,-61,-68,-28,-75,-21,-21,-21,-27,-25,-36,-35,-289,-268,-279,-276,-517,-354,-316,-147,-734,-709,-760,-575,-1540,-1578,-1608,-1542,-1639,-1098,-1217,-1105,-2133,-1353,-2597,-2384,-2192,-1899,-2298,-2266,-2187,-1737,-1521,-1447,-1161,-1266,-1917,-1729,-1203,-1150,-875,-780,-29962,-29964,-29963,-29966,-29965,-11662,-29972,-29971,-29971,-29972,-29967,-29966,-29957,-29955,-7120,-5722]} 1. e4 {[%emt 0:00:10][%cal Be2e4,Be4e5][%mdl 32]} Nf6 {[%emt 0:00:01]} 2. e5 {[%emt 0:00:03]} Nd5 {[%emt 0:00:03]} 3. Nf3 {[%emt 0:00:05]} d6 {[%emt 0:00:05]} 4. d4 {[%emt 0:00:05]} g6 {[%emt 0:00:04]} 5. Be2 {[%emt 0:00:16]} Bg7 {[%emt 0:00:07]} 6. O-O {[%emt 0:00:14] B04: Alekhine's Defence: 4 Nf3.} Nc6 {[%emt 0:00:55][%cal Rd6e5]} 7. exd6 {[%emt 0:00:22]} (7. c4 $5 {[%cal Rc4d5]} Nb6 8. exd6 $14) 7... cxd6 {[%emt 0:00:03]} 8. c4 {[%emt 0:00:03] White is slightly better.} Nb6 {[%emt 0:00:02]} 9. Nc3 {[%emt 0:00:08]} (9. d5 $14 Nb4 10. Nc3) 9... Bg4 $11 {[%emt 0:00:58]} 10. Be3 {[%emt 0:01:30]} Bxf3 {[%emt 0:02:51]} 11. Bxf3 {[%emt 0:00:04]} Nxc4 {[%emt 0:00:14]} 12. Bxc6+ {[%emt 0:00:31]} bxc6 {[%emt 0:00:02]} 13. Qa4 {[%emt 0:00:03][%csl LRc4,LRc6]} Nb6 $1 {[%emt 0:00:08]} 14. Qxc6+ {[%emt 0:00:08]} Qd7 {[%emt 0:00:01]} 15. Qxd7+ {[%emt 0:02:28]} Kxd7 {[%emt 0:00:02]} 16. Rfc1 {[%emt 0:00:23]} Rhc8 {[%emt 0:04:48]} 17. Kf1 {[%emt 0:00:48]} f5 {[%emt 0:02:59] [#]} 18. Ke2 $146 {[%emt 0:00:43]} ({Predecessor:} 18. g3 g5 19. Ne2 Bf6 20. Rxc8 Rxc8 21. Rc1 Rxc1+ 22. Bxc1 Nd5 23. Bd2 Kc6 24. b3 {0-1 (35) Pena Riasco,A (2237)-Leon Acosta,M (1985) Almansa 2012}) 18... f4 {[%emt 0:00:24]} (18... g5 $5 {[%cal Rf5f4]}) 19. Bxf4 {[%emt 0:00:04]} Bxd4 {[%emt 0:00:01]} 20. Nd1 {[%emt 0:02:36]} Nd5 {[%emt 0:01:25]} 21. Bd2 {[%emt 0:00:17]} e5 {[%emt 0:01:27]} 22. Rxc8 {[%emt 0:00:26]} Rxc8 {[%emt 0:00:02]} 23. Rc1 {[%emt 0:00:02]} Rg8 {[%emt 0:00:40]} 24. h4 {[%emt 0:00:40]} Ne7 {[%emt 0:01:08]} 25. b3 {[%emt 0:00:39]} Nf5 {[%emt 0:00:53]} 26. g3 {[%emt 0:00:05]} d5 {[%emt 0:00:20]} 27. Nc3 {[%emt 0:02:00]} Bxc3 {[%emt 0:02:15]} 28. Bxc3 {[%emt 0:01:07][%mdl 4096] Endgame KRB-KRN} (28. Rxc3 $11 Rb8 29. Rc5) 28... Rc8 $15 {[%emt 0:00:05]} 29. Bb2 {[%emt 0:00:30]} Rxc1 {[%emt 0:00:26]} 30. Bxc1 {[%emt 0:00:02] KB-KN} Kc6 {[%emt 0:01:19]} 31. Bg5 {[%emt 0:00:36]} (31. Kf3 $11 {deserves consideration.}) 31... d4 {[%emt 0:00:40]} (31... e4 $17) 32. g4 $1 $11 {[%emt 0:00:07]} Nd6 {[%emt 0:00:02]} 33. Be7 {[%emt 0:06:28]} Nb5 {[%emt 0:00:29]} 34. Kd3 {[%emt 0:00:40]} Kd5 {[%emt 0:00:24] White must now prevent ...h5.} 35. a4 $2 {[%emt 0:03:24][%mdl 8192]} (35. f3 $15) 35... e4+ $19 {[%emt 0:00:23]} 36. Kd2 {[%emt 0:00:02]} Nc7 {[%emt 0:00:25]} 37. b4 $2 {[%emt 0:01:06]} (37. a5) 37... a6 {[%emt 0:00:23]} 38. Bd8 {[%emt 0:01:48]} Ne6 {[%emt 0:00:13]} 39. Bb6 {[%emt 0:00:33][%mdl 8192] White does not recover from this.} (39. Bf6 $17) 39... Kc4 {[%emt 0:00:17]} 40. Ba5 {[%emt 0:00:18]} Nf4 {[%emt 0:00:08] Hoping for ...Nd3.} 41. b5 {[%emt 0:00:12]} axb5 {[%emt 0:00:03]} 42. axb5 {[%emt 0:00:02]} Kxb5 {[%emt 0:00:01]} 43. Bc7 {[%emt 0:00:04]} Ne6 {[%emt 0:00:20]} 44. Be5 {[%emt 0:00:15]} Kc4 {[%emt 0:00:01]} 45. Bf6 {[%emt 0:00:20]} Nc5 {[%emt 0:00:13][%cal Oe4e3] ...e3+! is the strong threat.} 46. Bg7 {[%emt 0:00:06]} Nb3+ {[%emt 0:00:08]} 47. Ke2 {[%emt 0:00:05]} Kd5 {[%emt 0:01:06]} 48. Bh8 {[%emt 0:00:07]} Nc5 {[%emt 0:00:03]} 49. Bg7 {[%emt 0:00:13]} Ne6 {[%emt 0:00:03]} 50. Bh6 {[%emt 0:00:02]} Ke5 {[%emt 0:00:06]} 51. Kd2 {[%emt 0:00:09]} Nf4 {[%emt 0:00:06]} 52. Bg7+ {[%emt 0:00:05]} Kd5 {[%emt 0:00:01]} 53. Bh6 {[%emt 0:00:08]} Ng2 {[%emt 0:00:32]} 54. Bg5 {[%emt 0:00:04]} h6 {[%emt 0:00:39]} 55. Bxh6 {[%emt 0:00:03]} Nxh4 {[%emt 0:00:01]} 56. Ke2 {[%emt 0:00:16]} Nf3 {[%emt 0:00:04]} 57. Bf4 {[%emt 0:00:07]} Ne5 {[%emt 0:00:02]} (57... d3+ $142 58. Kd1 Ne5 59. Bg3 Nxg4 60. Bh4 Kc5 61. Ke1 Kb4 62. Kd2 Kc4 63. Bg5 Nxf2 64. Ke3 Nh3 65. Bf6 {[#]} Nf4 $1 {[%mdl 512]} 66. Bg5 Ne6 67. Bh6 g5 68. Kxe4 d2 69. Ke5 d1=Q $1 70. Kxe6 Qh5 71. Bf8 Qe8+ 72. Be7 g4 73. Kf5 g3 74. Bd6 g2 75. Bh2 Qh5+ 76. Ke6 Qxh2 77. Kf6 g1=Q 78. Kf5 Qf1+ 79. Ke6 Qf8 80. Kd7 Qhd6#) 58. g5 {[%emt 0:00:03]} Nf3 {[%emt 0:00:04]} 59. Bc1 {[%emt 0:00:10]} Ke5 {[%emt 0:00:05]} 60. Bb2 {[%emt 0:00:13]} Kf5 {[%emt 0:00:01]} 61. Bc1 {[%emt 0:00:03]} Nxg5 {[%emt 0:00:02]} 62. Bd2 {[%emt 0:00:03]} Nf3 {[%emt 0:00:01] Weighted Error Value: White=0.85/Black=0.51} 0-1

[Event "Chinese League Div-A Rapid 2022"]
[Site "Fuling,Chongqing"]
[Date "2022.09.06"]
[Round "1.19"]
[White "Li, Ruofan"]
[Black "Chen, Yining"]
[Result "1-0"]
[ECO "E50"]
[WhiteElo "2302"]
[BlackElo "1745"]
[Annotator "RC"]
[PlyCount "79"]
[EventDate "2022.09.07"]
[EventType "team-tourn"]
[EventCountry "CHN"]
[SourceTitle "playchess.com"]
[Source "ChessBase"]
[SourceQuality "1"]
[TimeControl "1500+10"]

1. d4 {[%emt 0:00:02]} Nf6 {[%emt 0:00:04]} 2. c4 {[%emt 0:00:02]} e6 {[%emt 0:00:07]} 3. Nc3 {[%emt 0:00:01]} Bb4 {[%emt 0:00:05]} 4. Nf3 {[%emt 0:00:02]} O-O {[%emt 0:00:18]} 5. e3 {[%emt 0:00:03]} Bxc3+ {[%emt 0:00:25]} 6. bxc3 {[%emt 0:00:02]} d6 {[%emt 0:00:32]} 7. Bd3 {[%emt 0:02:07]} Nc6 {[%emt 0:01:05]} 8. Qc2 {[%emt 0:02:32]} e5 {[%emt 0:02:05]} 9. O-O {[%emt 0:00:04]} Re8 {[%emt 0:00:56]} 10. Ng5 {[%emt 0:00:35]} h6 {[%emt 0:02:12]} 11. Ne4 {[%emt 0:00:02]} Nxe4 {[%emt 0:01:07]} 12. Bxe4 {[%emt 0:00:01]} Qe7 {[%emt 0:00:26]} 13. f3 {[%emt 0:01:09]} a5 {[%emt 0:00:44]} 14. Ba3 {[%emt 0:03:56]} Bd7 {[%emt 0:04:51]} 15. c5 {[%emt 0:00:44]} dxc5 {[%emt 0:01:05]} 16. Bxc5 {[%emt 0:00:14]} Qg5 {[%emt 0:00:37]} 17. f4 {[%emt 0:04:13]} exf4 {[%emt 0:00:21]} 18. Rxf4 {[%emt 0:00:02]} f5 {[%emt 0:01:50]} 19. Bd5+ {[%emt 0:03:17]} Kh8 {[%emt 0:00:31]} 20. Qf2 {[%emt 0:00:15]} Nd8 {[%emt 0:01:35]} 21. e4 {[%emt 0:02:04]} Ra6 {[%emt 0:03:10]} 22. exf5 {[%emt 0:01:04]} Qf6 {[%emt 0:01:39]} 23. Re1 {[%emt 0:00:55]} Rxe1+ {[%emt 0:00:59]} 24. Qxe1 {[%emt 0:00:01]} Nc6 {[%emt 0:00:10]} 25. Re4 {[%emt 0:02:56]} Ra8 {[%emt 0:01:19]} 26. Be6 {[%emt 0:00:14]} Bxe6 {[%emt 0:00:43]} 27. fxe6 {[%emt 0:00:09]} Ne7 {[%emt 0:00:06]} 28. h3 {[%emt 0:01:00]} Re8 {[%emt 0:00:15]} 29. Bxe7 {[%emt 0:00:24]} Qxe7 {[%emt 0:00:10]} 30. Re5 {[%emt 0:00:08]} c6 {[%emt 0:00:09]} 31. Rxa5 {[%emt 0:00:06]} Qd6 {[%emt 0:00:17]} 32. Re5 {[%emt 0:00:06]} Re7 {[%emt 0:00:05]} 33. a4 {[%emt 0:00:25]} Kg8 {[%emt 0:00:13]} 34. a5 {[%emt 0:00:01]} Kf8 {[%emt 0:00:04]} 35. Qf2+ {[%emt 0:00:10]} Kg8 {[%emt 0:00:23]} 36. Qf5 {[%emt 0:00:17]} Qd8 {[%emt 0:00:13]} 37. h4 {[%emt 0:00:19]} Qf8 {[%emt 0:00:17]} 38. Qxf8+ {[%emt 0:00:54]} Kxf8 {[%emt 0:00:03]} 39. c4 {[%emt 0:00:01]} Rc7 {[%emt 0:00:12]} 40. Rf5+ {[%emt 0:00:10]} 1-0

[Event "Chinese League Div-A Rapid 2022"]
[Site "Fuling,Chongqing"]
[Date "2022.09.06"]
[Round "1.20"]
[White "Wang, Yu A."]
[Black "Zhou, Guijue"]
[Result "1-0"]
[ECO "B90"]
[WhiteElo "2271"]
[BlackElo "2225"]
[Annotator "RC"]
[PlyCount "51"]
[EventDate "2022.09.07"]
[EventType "team-tourn"]
[EventCountry "CHN"]
[SourceTitle "playchess.com"]
[Source "ChessBase"]
[SourceQuality "1"]
[TimeControl "1500+10"]

1. e4 {[%emt 0:00:01]} c5 {[%emt 0:00:05]} 2. Nf3 {[%emt 0:00:05]} d6 {[%emt 0:00:13]} 3. d4 {[%emt 0:00:07]} cxd4 {[%emt 0:00:00]} 4. Nxd4 {[%emt 0:00:02]} Nf6 {[%emt 0:00:01]} 5. Nc3 {[%emt 0:00:02]} a6 {[%emt 0:00:04]} 6. Bd3 {[%emt 0:00:19]} g6 {[%emt 0:00:05]} 7. O-O {[%emt 0:00:20]} Bg7 {[%emt 0:00:03]} 8. Nb3 {[%emt 0:01:06]} O-O {[%emt 0:01:24]} 9. Bg5 {[%emt 0:00:10]} h6 {[%emt 0:01:30]} 10. Bd2 {[%emt 0:00:41]} Nc6 {[%emt 0:00:16]} 11. Qc1 {[%emt 0:04:09]} Kh7 {[%emt 0:00:38]} 12. f4 {[%emt 0:00:57]} Ng4 {[%emt 0:02:24]} 13. Nd5 {[%emt 0:04:16]} e6 {[%emt 0:02:01]} 14. Ne3 {[%emt 0:00:01]} Nxe3 {[%emt 0:01:13]} 15. Bxe3 {[%emt 0:00:02]} f5 {[%emt 0:00:26]} 16. c3 {[%emt 0:01:12]} e5 {[%emt 0:04:44]} 17. Qd2 {[%emt 0:01:01]} exf4 {[%emt 0:04:21]} 18. Bxf4 {[%emt 0:00:05]} d5 {[%emt 0:00:03]} 19. exf5 {[%emt 0:01:46]} Bxf5 {[%emt 0:00:04]} 20. Rad1 {[%emt 0:02:34]} Ne7 {[%emt 0:02:08]} 21. Bxf5 {[%emt 0:01:15]} Rxf5 {[%emt 0:00:10]} 22. Nd4 {[%emt 0:00:39]} Rf7 {[%emt 0:01:12]} 23. Be3 {[%emt 0:02:00]} Rxf1+ {[%emt 0:00:41]} 24. Rxf1 {[%emt 0:00:01]} Qd6 {[%emt 0:00:11]} 25. Rf7 {[%emt 0:02:03]} Ng8 {[%emt 0:01:08]} 26. Bf4 {[%emt 0:00:00]} 1-0

[Event "Chinese League Div-A Rapid 2022"]
[Site "Fuling,Chongqing"]
[Date "2022.09.06"]
[Round "1.21"]
[White "Peng, Xiongjian"]
[Black "Pang, Tao"]
[Result "1-0"]
[ECO "C10"]
[WhiteElo "2454"]
[BlackElo "2427"]
[Annotator "TA"]
[PlyCount "129"]
[EventDate "2022.09.07"]
[EventType "team-tourn"]
[EventCountry "CHN"]
[SourceTitle "playchess.com"]
[Source "ChessBase"]
[SourceQuality "1"]
[TimeControl "1500+10"]

{[%evp 13,129,10,32,7,40,33,43,50,59,50,67,65,120,114,159,163,165,131,124,110,124,108,137,107,142,72,77,68,100,87,97,76,80,82,95,0,0,-11,-5,-23,-7,-5,47,47,60,-45,-31,-41,-41,-52,-39,-84,-95,-73,-49,-93,-75,-85,-80,-110,-98,-83,-81,-123,-97,-144,-144,-164,-146,-227,-203,-404,-394,-400,-388,-449,-437,-426,-416,-404,-399,-527,-527,-527,-497,-463,-370,-349,-199,-173,5510,5704,5015,4535,1659,4622,29974,2650,29982,29978,29984,2070,29983,29983,29983,29972,29970,29972,29955,0,29975,29965,29953,5591,29976,29977,29974,29976]} 1. e4 {[%emt 0:00:03]} e6 {[%emt 0:00:00]} 2. d4 {[%emt 0:00:02]} d5 {[%emt 0:00:01]} 3. Nd2 {[%emt 0:00:02]} dxe4 {[%emt 0:00:02]} 4. Nxe4 {[%emt 0:00:03]} Nd7 {[%emt 0:00:00]} 5. g3 {[%emt 0:00:23]} Ngf6 {[%emt 0:00:06]} 6. Nxf6+ {[%emt 0:00:07]} Nxf6 {[%emt 0:00:02]} 7. Bg2 {[%emt 0:00:02]} c5 {[%emt 0:00:23]} (7... e5 $5) 8. Ne2 {[%emt 0:00:09][%cal Bg1e2,Be2d4,Bd4b3][%mdl 32] C10: French with 3 Nc3: Unusual Black 3rd moves and 3...dxe4.} cxd4 {[%emt 0:00:59]} 9. Qxd4 {[%emt 0:00:05]} Qxd4 {[%emt 0:00:11]} 10. Nxd4 {[%emt 0:00:02] White is slightly better.} Bc5 {[%emt 0:00:22]} 11. Nb3 {[%emt 0:00:24]} Bd6 {[%emt 0:00:34]} 12. Be3 {[%emt 0:00:47] [#]} Ke7 $146 {[%emt 0:00:59]} ({Black should play} 12... O-O $14) ({Predecessor:} 12... O-O 13. O-O-O Bc7 14. Bc5 Re8 15. Rhe1 h6 16. Nd2 Nd7 17. Ba3 Nf6 18. Nc4 a5 {1-0 (40) Reinderman,D (2584)-Brandenburg,D (2511) Dieren 2015}) 13. O-O-O $16 {[%emt 0:01:50]} Ng4 {[%emt 0:00:52]} 14. Bd4 {[%emt 0:00:14]} e5 {[%emt 0:00:59]} 15. h3 {[%emt 0:00:13]} exd4 {[%emt 0:04:11]} 16. hxg4 {[%emt 0:00:02]} Bxg4 {[%emt 0:00:29]} 17. Rxd4 {[%emt 0:00:04]} Be6 {[%emt 0:00:21]} 18. Bxb7 {[%emt 0:00:09]} ({Resist} 18. Re1 Rad8 $16) 18... Rad8 {[%emt 0:00:21]} 19. Re1 {[%emt 0:01:59]} ({Better is} 19. Na5 {Black must now prevent Rhd1.} Rd7 20. Nc6+ Kf6 21. Rhd1 $1 Rxb7 22. Rxd6) 19... Kf6 {[%emt 0:01:07]} 20. Ra4 {[%emt 0:01:51]} Rd7 {[%emt 0:02:11]} 21. Bc6 {[%emt 0:02:10] White is more active.} ({Not} 21. Rxa7 Bb8 22. Ra3 Rxb7 $17) 21... Rc7 {[%emt 0:01:21]} 22. Bb5 {[%emt 0:00:14]} Bxb3 {[%emt 0:02:46]} 23. axb3 {[%emt 0:00:02]} Rb8 {[%emt 0:00:09]} 24. Rd4 {[%emt 0:01:27]} ({White should try} 24. Ra6 $16 Rb6 25. Rxb6 axb6 26. c3) 24... Bxg3 $11 {[%emt 0:01:07]} 25. Bc4 {[%emt 0:05:02]} Be5 $36 {[%emt 0:00:15][%mdl 2048] White is under pressure.} 26. Rh4 {[%emt 0:00:42]} Re7 {[%emt 0:02:27][%cal Oe5b2]} 27. c3 {[%emt 0:01:02]} Bd6 {[%emt 0:01:26]} (27... g6 $11) 28. Rd1 $14 {[%emt 0:00:41]} Bc7 {[%emt 0:00:30]} 29. Rd3 {[%emt 0:01:17]} (29. Rxh7 $14 Rd8 30. Rxd8 Bxd8 31. Rh8) 29... h6 $15 {[%emt 0:01:41]} 30. b4 {[%emt 0:02:23]} g6 {[%emt 0:00:07]} 31. Rhd4 {[%emt 0:00:45]} h5 {[%emt 0:00:15]} 32. Rd7 {[%emt 0:00:34] Rf3+ is the strong threat.} Bf4+ {[%emt 0:00:01]} 33. Kd1 {[%emt 0:01:03]} Rb7 {[%emt 0:00:08]} 34. Rd8 {[%emt 0:00:17]} h4 {[%emt 0:00:33]} 35. Bd5 {[%emt 0:00:59]} Rbd7 {[%emt 0:00:05]} 36. Rxd7 {[%emt 0:00:10]} Rxd7 $17 {[%emt 0:00:01][%mdl 4096] Endgame KRB-KRB} 37. c4 {[%emt 0:00:02]} g5 {[%emt 0:00:13]} 38. Rh3 {[%emt 0:00:28]} Bd6 {[%emt 0:00:11]} 39. b5 {[%emt 0:00:09]} (39. Rf3+ $142 Ke5 40. Re3+ Kf5 41. Bc6) 39... Re7 {[%emt 0:00:30]} 40. Kd2 {[%emt 0:00:50]} Kg6 {[%emt 0:00:10]} 41. Kc3 {[%emt 0:00:26]} (41. Bc6 $17) 41... Re2 $19 {[%emt 0:00:30]} 42. b4 $2 {[%emt 0:02:21]} (42. Rf3 f5 43. Kd3 Rxb2 44. Re3) 42... Rxf2 {[%emt 0:00:05]} 43. c5 {[%emt 0:00:01]} Be5+ {[%emt 0:00:01]} 44. Kc4 {[%emt 0:00:13]} Rc2+ {[%emt 0:01:01]} 45. Kb3 {[%emt 0:00:01]} Rd2 {[%emt 0:00:02]} 46. Bc6 {[%emt 0:00:34]} f5 {[%emt 0:00:04]} 47. b6 {[%emt 0:00:03]} axb6 {[%emt 0:00:05]} 48. cxb6 {[%emt 0:00:00]} Rd8 {[%emt 0:00:16]} 49. b7 {[%emt 0:00:19]} Rh8 {[%emt 0:00:21]} 50. Re3 {[%emt 0:00:13]} Kf6 {[%emt 0:00:04]} (50... Bf4 $142 51. Rc3 h3) 51. Bd7 {[%emt 0:00:14][%cal Oe3e5] Hoping for Rxe5!} h3 $4 {[%emt 0:00:10][%mdl 8192] [#]} (51... Rb8 $19 52. Rf3 Rxb7 53. Bxf5 Bf4) 52. Rxe5 $1 $18 {[%emt 0:00:02][%mdl 512] KRB-KR} h2 {[%emt 0:02:48]} 53. Re1 {[%emt 0:00:01] White threatens Bc8 and mate.} Rb8 {[%emt 0:00:11]} 54. Bc6 {[%emt 0:00:06] Intending Ra1 and mate.} g4 {[%emt 0:00:03]} 55. Rh1 {[%emt 0:00:21]} (55. Ra1 $142 Ke6 56. Ra8 Kd6 57. Rxb8 Kxc6 58. Rh8 Kxb7 59. Rxh2 Kc8 60. Rf2) 55... g3 {[%emt 0:00:01]} 56. Kc4 {[%emt 0:00:05]} Kg5 {[%emt 0:00:15]} 57. Bf3 {[%emt 0:00:36]} (57. Ra1 $142 Kf4 58. Ra8 g2 59. Bxg2 Rxb7 60. Bxb7 Kg3 61. b5 f4 62. Ra3+ f3 63. Bxf3) 57... Kh4 {[%emt 0:00:21]} 58. Bg2 {[%emt 0:00:12]} f4 {[%emt 0:00:08]} 59. Rf1 {[%emt 0:00:06]} Kg4 {[%emt 0:00:04]} 60. Kc5 {[%emt 0:00:04]} Rf8 {[%emt 0:00:07]} 61. Bc6 $2 {[%emt 0:00:12]} (61. Kb6 {mates} Rf6+ 62. Ka7 f3 {[#]} 63. Rxf3 $1 {[%mdl 512]} Rxf3 64. b8=Q Rf7+ 65. Kb6 Rf6+ 66. Kc5) 61... Kh3 $2 {[%emt 0:00:18][%mdl 8192]} (61... f3 $11 62. Rxf3 Rxf3 63. Bxf3+ Kxf3) 62. Bd7+ {[%emt 0:00:03]} Kg2 {[%emt 0:00:01] [#]} 63. Rxf4 $3 {[%emt 0:00:12][%mdl 512]} Rxf4 {[%emt 0:00:23]} (63... Rg8 64. Bc6+) 64. b8=Q {[%emt 0:00:02]} h1=Q {[%emt 0:00:13]} 65. Bc6+ {[%emt 0:00:04] What a fight!  Weighted Error Value: White=0.26 (precise) /Black=0.54} 1-0